[Event "Amateur Tournament (ATO)"]
[Site "Biel, Switzerland"]
[Date "2026.07.20"]
[Round "6.6"]
[White "Schneuwly, Achim"]
[Black "Betsche, Tim"]
[Result "0-1"]
[TimeControl "90+30+30sec/move"]
[WhiteTitle "-"]
[BlackTitle "-"]
[WhiteFideId "1303252"]
[BlackFideId "1347535"]
[WhiteElo "1933"]
[BlackElo "1840"]

1. Nf3 {[%clk 01:30:55]} {[%emt 00:00:03]} d5 {[%clk 01:30:50]} {[%emt
00:00:10]} 2. g3 {[%clk 01:29:25]} {[%emt 00:02:00]} Nf6 {[%clk 01:30:15]}
{[%emt 00:01:06]} 3. Bg2 {[%clk 01:29:50]} {[%emt 00:00:05]} g6 {[%clk
01:25:42]} {[%emt 00:05:04]} 4. O-O {[%clk 01:28:41]} {[%emt 00:01:39]} Bg7
{[%clk 01:26:04]} {[%emt 00:00:07]} 5. d3 {[%clk 01:27:17]} {[%emt 00:01:53]}
O-O {[%clk 01:24:11]} {[%emt 00:02:24]} 6. Nbd2 {[%clk 01:27:41]} {[%emt
00:00:05]} Nbd7 {[%clk 01:20:34]} {[%emt 00:04:08]} 7. c4 {[%clk 01:22:07]}
{[%emt 00:06:03]} c6 {[%clk 01:16:38]} {[%emt 00:04:28]} 8. Rb1 {[%clk
01:21:09]} {[%emt 00:01:27]} a5 {[%clk 01:13:16]} {[%emt 00:03:52]} 9. Qc2
{[%clk 01:19:46]} {[%emt 00:01:53]} Re8 {[%clk 01:05:14]} {[%emt 00:08:32]} 10.
b3 {[%clk 01:18:17]} {[%emt 00:01:58]} e5 {[%clk 01:04:28]} {[%emt 00:01:16]}
11. cxd5 {[%clk 01:11:59]} {[%emt 00:06:49]} cxd5 {[%clk 01:01:31]} {[%emt
00:03:27]} 12. Bb2 {[%clk 01:08:32]} {[%emt 00:03:56]} Ra6 {[%clk 01:00:40]}
{[%emt 00:01:23]} 13. Rbc1 {[%clk 01:08:30]} {[%emt 00:00:31]} Rc6 {[%clk
00:59:42]} {[%emt 00:01:28]} 14. Qb1 {[%clk 01:08:54]} {[%emt 00:00:06]} Qc7
{[%clk 00:57:36]} {[%emt 00:02:36]} 15. Rxc6 {[%clk 01:03:23]} {[%emt
00:06:01]} bxc6 {[%clk 00:53:34]} {[%emt 00:04:33]} 16. Rc1 {[%clk 01:02:01]}
{[%emt 00:01:51]} Bb7 {[%clk 00:52:09]} {[%emt 00:01:56]} 17. Bh3 {[%clk
00:55:48]} {[%emt 00:06:41]} e4 {[%clk 00:42:50]} {[%emt 00:09:50]} 18. Nd4
{[%clk 00:46:49]} {[%emt 00:09:29]} e3 {[%clk 00:34:24]} {[%emt 00:08:56]} 19.
fxe3 {[%clk 00:42:18]} {[%emt 00:05:01]} Bh6 {[%clk 00:33:48]} {[%emt
00:01:07]} 20. Nf1 {[%clk 00:40:35]} {[%emt 00:02:11]} Ne5 {[%clk 00:30:32]}
{[%emt 00:03:46]} 21. Nc2 {[%clk 00:36:20]} {[%emt 00:04:45]} Neg4 {[%clk
00:29:39]} {[%emt 00:01:24]} 22. Bxf6 {[%clk 00:35:19]} {[%emt 00:01:31]} Nxf6
{[%clk 00:30:04]} {[%emt 00:00:05]} 23. Qb2 {[%clk 00:34:50]} {[%emt 00:00:59]}
Qd6 {[%clk 00:28:31]} {[%emt 00:02:03]} 24. Qc3 {[%clk 00:29:40]} {[%emt
00:05:39]} Re5 {[%clk 00:24:38]} {[%emt 00:04:25]} 25. Qxa5 {[%clk 00:27:40]}
{[%emt 00:02:30]} Rh5 {[%clk 00:23:30]} {[%emt 00:01:37]} 26. Bg2 {[%clk
00:27:37]} {[%emt 00:00:32]} Ng4 {[%clk 00:17:50]} {[%emt 00:06:11]} 27. Qb6
{[%clk 00:22:23]} {[%emt 00:05:43]} Qf6 {[%clk 00:15:38]} {[%emt 00:02:43]} 28.
Qd4 {[%clk 00:05:24]} {[%emt 00:17:29]} Qf2+ {[%clk 00:14:51]} {[%emt
00:01:17]} 29. Kh1 {[%clk 00:05:49]} {[%emt 00:00:04]} Nxh2 {[%clk 00:14:42]}
{[%emt 00:00:39]} 30. Nxh2 {[%clk 00:05:25]} {[%emt 00:00:55]} Qxg3 {[%clk
00:15:02]} {[%emt 00:00:10]} 31. Kg1 {[%clk 00:05:28]} {[%emt 00:00:27]} Rxh2
{[%clk 00:15:11]} {[%emt 00:00:21]} 32. Ne1 {[%clk 00:04:43]} {[%emt 00:01:14]}
Bxe3+ {[%clk 00:15:25]} {[%emt 00:00:16]} 0-1

[Event "Amateur Tournament (ATO)"]
[Site "Biel, Switzerland"]
[Date "2026.07.22"]
[Round "8.1"]
[White "Alexakis, Dimitrios"]
[Black "Jud, Marc"]
[Result "1/2-1/2"]
[TimeControl "90+30+30sec/move"]
[WhiteTitle "-"]
[BlackTitle "-"]
[WhiteFideId "4200527"]
[BlackFideId "1309099"]
[WhiteElo "1959"]
[BlackElo "1991"]

1. e4 {[%clk 01:30:55]} {[%emt 00:00:04]} c5 {[%clk 01:30:52]} {[%emt
00:00:09]} 2. Nf3 {[%clk 01:31:07]} {[%emt 00:00:16]} d6 {[%clk 01:31:02]}
{[%emt 00:00:21]} 3. d4 {[%clk 01:31:05]} {[%emt 00:00:32]} cxd4 {[%clk
01:31:23]} {[%emt 00:00:10]} 4. Nxd4 {[%clk 01:31:26]} {[%emt 00:00:09]} Nf6
{[%clk 01:31:43]} {[%emt 00:00:09]} 5. Nc3 {[%clk 01:31:48]} {[%emt 00:00:08]}
a6 {[%clk 01:31:47]} {[%emt 00:00:27]} 6. Be2 {[%clk 01:31:06]} {[%emt
00:01:11]} e5 {[%clk 01:31:45]} {[%emt 00:00:32]} 7. Nb3 {[%clk 01:31:04]}
{[%emt 00:00:32]} Be6 {[%clk 01:31:55]} {[%emt 00:00:20]} 8. Be3 {[%clk
01:30:46]} {[%emt 00:00:48]} Nbd7 {[%clk 01:31:02]} {[%emt 00:01:23]} 9. O-O
{[%clk 01:22:01]} {[%emt 00:09:14]} Be7 {[%clk 01:30:43]} {[%emt 00:00:50]} 10.
Qd2 {[%clk 01:16:07]} {[%emt 00:06:24]} Qc7 {[%clk 01:29:57]} {[%emt 00:01:16]}
11. Nd5 {[%clk 01:11:55]} {[%emt 00:04:42]} Nxd5 {[%clk 01:29:24]} {[%emt
00:01:04]} 12. exd5 {[%clk 01:12:13]} {[%emt 00:00:11]} Bf5 {[%clk 01:29:46]}
{[%emt 00:00:09]} 13. c4 {[%clk 01:11:18]} {[%emt 00:01:24]} b6 {[%clk
01:26:47]} {[%emt 00:03:30]} 14. f4 {[%clk 01:09:38]} {[%emt 00:02:09]} exf4
{[%clk 01:25:36]} {[%emt 00:01:41]} 15. Bxf4 {[%clk 01:09:33]} {[%emt
00:00:35]} Bg6 {[%clk 01:24:29]} {[%emt 00:01:38]} 1/2-1/2

[Event "Amateur Tournament (ATO)"]
[Site "Biel, Switzerland"]
[Date "2026.07.22"]
[Round "8.2"]
[White "Zhou, Abigail"]
[Black "Jahn, Thomas"]
[Result "1/2-1/2"]
[TimeControl "90+30+30sec/move"]
[WhiteTitle "-"]
[BlackTitle "-"]
[WhiteFideId "39922081"]
[BlackFideId "34679430"]
[WhiteElo "1831"]
[BlackElo "1944"]

1. e4 {[%clk 01:30:59]} c5 {[%clk 01:30:45]} {[%emt 00:00:15]} 2. Nf3 {[%clk
01:31:25]} {[%emt 00:00:05]} a6 {[%clk 01:31:08]} {[%emt 00:00:07]} 3. d4
{[%clk 01:31:13]} {[%emt 00:00:42]} cxd4 {[%clk 01:31:29]} {[%emt 00:00:09]} 4.
Nxd4 {[%clk 01:31:34]} {[%emt 00:00:09]} Nf6 {[%clk 01:31:52]} {[%emt
00:00:06]} 5. Nc3 {[%clk 01:30:56]} {[%emt 00:01:09]} e5 {[%clk 01:32:14]}
{[%emt 00:00:07]} 6. Nb3 {[%clk 01:30:59]} {[%emt 00:00:28]} Bb4 {[%clk
01:32:35]} {[%emt 00:00:08]} 7. Bd3 {[%clk 01:29:35]} {[%emt 00:01:55]} Bxc3+
{[%clk 01:32:54]} {[%emt 00:00:11]} 8. bxc3 {[%clk 01:29:58]} {[%emt 00:00:07]}
d6 {[%clk 01:33:21]} {[%emt 00:00:02]} 9. O-O {[%clk 01:29:07]} {[%emt
00:01:21]} O-O {[%clk 01:33:44]} {[%emt 00:00:07]} 10. Qe2 {[%clk 01:22:03]}
{[%emt 00:07:35]} Qc7 {[%clk 01:31:12]} {[%emt 00:03:01]} 11. Bd2 {[%clk
01:15:16]} {[%emt 00:07:18]} Bg4 {[%clk 01:30:54]} {[%emt 00:00:47]} 12. f3
{[%clk 01:15:17]} {[%emt 00:00:30]} Be6 {[%clk 01:31:17]} {[%emt 00:00:06]} 13.
a4 {[%clk 01:11:41]} {[%emt 00:04:07]} a5 {[%clk 01:15:38]} {[%emt 00:16:09]}
14. Rfb1 {[%clk 01:01:47]} {[%emt 00:10:24]} Nbd7 {[%clk 01:14:24]} {[%emt
00:01:43]} 15. Be1 {[%clk 00:58:04]} {[%emt 00:04:14]} Nh5 {[%clk 01:10:46]}
{[%emt 00:04:08]} 16. Bb5 {[%clk 00:52:07]} {[%emt 00:06:27]} Nf4 {[%clk
01:09:32]} {[%emt 00:01:43]} 17. Qf1 {[%clk 00:45:28]} {[%emt 00:07:10]} Nb6
{[%clk 01:04:13]} {[%emt 00:05:48]} 18. Nc1 {[%clk 00:37:54]} {[%emt 00:08:04]}
Nc4 {[%clk 01:04:03]} {[%emt 00:00:39]} 19. Qf2 {[%clk 00:35:38]} {[%emt
00:02:47]} Rfd8 {[%clk 00:44:02]} {[%emt 00:20:31]} 20. Nd3 {[%clk 00:32:16]}
{[%emt 00:03:52]} Rac8 {[%clk 00:42:59]} {[%emt 00:01:32]} 21. Nxf4 {[%clk
00:30:53]} {[%emt 00:01:54]} exf4 {[%clk 00:43:27]} {[%emt 00:00:03]} 22. Bxc4
{[%clk 00:30:43]} {[%emt 00:00:40]} Bxc4 {[%clk 00:43:34]} {[%emt 00:00:22]} 23.
Qb6 {[%clk 00:22:24]} {[%emt 00:08:50]} Ba6 {[%clk 00:42:41]} {[%emt 00:01:22]}
24. Qxc7 {[%clk 00:21:13]} {[%emt 00:01:40]} Rxc7 {[%clk 00:43:09]} {[%emt
00:00:03]} 25. Rd1 {[%clk 00:21:17]} {[%emt 00:00:27]} Rc4 {[%clk 00:43:21]}
{[%emt 00:00:19]} 26. Rd5 {[%clk 00:18:42]} {[%emt 00:03:04]} b6 {[%clk
00:32:29]} {[%emt 00:11:22]} 27. e5 {[%clk 00:13:02]} {[%emt 00:06:10]} Kf8
{[%clk 00:23:09]} {[%emt 00:09:49]} 28. exd6 {[%clk 00:10:53]} {[%emt
00:02:40]} Bb7 {[%clk 00:21:37]} {[%emt 00:02:01]} 29. Rd3 {[%clk 00:08:55]}
{[%emt 00:02:29]} Bc6 {[%clk 00:20:13]} {[%emt 00:01:54]} 30. Bf2 {[%clk
00:07:13]} {[%emt 00:02:12]} Rxa4 {[%clk 00:17:40]} {[%emt 00:03:03]} 31. Rxa4
{[%clk 00:06:58]} Bxa4 {[%clk 00:18:07]} {[%emt 00:00:48]} 32. Bxb6 {[%clk
00:06:15]} {[%emt 00:01:12]} Rd7 {[%clk 00:18:15]} {[%emt 00:00:22]} 33. Bxa5
{[%clk 00:05:34]} {[%emt 00:01:12]} Bxc2 {[%clk 00:18:33]} {[%emt 00:00:11]} 34.
Rd2 {[%clk 00:05:43]} {[%emt 00:00:21]} Bb3 {[%clk 00:17:24]} {[%emt 00:01:39]}
35. Bc7 {[%clk 00:05:57]} {[%emt 00:00:17]} g5 {[%clk 00:15:38]} {[%emt
00:02:15]} 36. Kf2 {[%clk 00:05:45]} {[%emt 00:00:42]} f5 {[%clk 00:10:41]}
{[%emt 00:05:27]} 37. Rd4 {[%clk 00:04:51]} {[%emt 00:01:24]} Kf7 {[%clk
00:08:19]} {[%emt 00:02:51]} 38. Ke1 {[%clk 00:04:34]} {[%emt 00:00:48]} Ke6
{[%clk 00:06:42]} {[%emt 00:02:07]} 39. Rb4 {[%clk 00:03:42]} {[%emt 00:01:22]}
Bd5 {[%clk 00:06:27]} {[%emt 00:00:45]} 40. c4 {[%clk 00:03:05]} {[%emt
00:01:07]} Ba8 {[%clk 00:04:16]} {[%emt 00:02:41]} 41. Rb3 {[%clk 00:03:08]}
{[%emt 00:00:27]} g4 {[%clk 00:03:33]} {[%emt 00:01:12]} 42. Rd3 {[%clk
00:03:14]} {[%emt 00:00:25]} Bc6 {[%clk 00:03:41]} {[%emt 00:00:22]} 43. Kf2
{[%clk 00:02:35]} {[%emt 00:01:09]} 1/2-1/2

[Event "Amateur Tournament (ATO)"]
[Site "Biel, Switzerland"]
[Date "2026.07.22"]
[Round "8.3"]
[White "Trubini, Timon"]
[Black "Bangerter, Ena"]
[Result "0-1"]
[TimeControl "90+30+30sec/move"]
[WhiteTitle "-"]
[BlackTitle "-"]
[WhiteFideId "1347799"]
[BlackFideId "1344102"]
[WhiteElo "1920"]
[BlackElo "1883"]

1. e4 {[%clk 01:30:43]} {[%emt 00:00:17]} e5 {[%clk 01:30:55]} {[%emt
00:00:06]} 2. Nf3 {[%clk 01:30:49]} {[%emt 00:00:22]} Nf6 {[%clk 01:31:21]}
{[%emt 00:00:05]} 3. d4 {[%clk 01:31:00]} {[%emt 00:00:19]} Nxe4 {[%clk
01:31:44]} {[%emt 00:00:07]} 4. dxe5 {[%clk 01:31:12]} {[%emt 00:00:18]} d5
{[%clk 01:32:06]} {[%emt 00:00:09]} 5. Nbd2 {[%clk 01:31:23]} {[%emt 00:00:18]}
Nc5 {[%clk 01:32:05]} {[%emt 00:00:31]} 6. Be2 {[%clk 01:31:26]} {[%emt
00:00:26]} Be7 {[%clk 01:32:21]} {[%emt 00:00:14]} 7. O-O {[%clk 01:31:33]}
{[%emt 00:00:23]} Nc6 {[%clk 01:31:55]} {[%emt 00:00:57]} 8. Re1 {[%clk
01:31:29]} {[%emt 00:00:34]} O-O {[%clk 01:31:54]} {[%emt 00:00:31]} 9. h3
{[%clk 01:29:50]} {[%emt 00:02:09]} Bf5 {[%clk 01:30:42]} {[%emt 00:01:42]} 10.
Nb3 {[%clk 01:26:33]} {[%emt 00:03:47]} a6 {[%clk 01:26:59]} {[%emt 00:04:14]}
11. Nfd4 {[%clk 01:17:44]} {[%emt 00:09:19]} Nxd4 {[%clk 01:25:21]} {[%emt
00:02:08]} 12. Nxd4 {[%clk 01:18:07]} {[%emt 00:00:06]} Bg6 {[%clk 01:24:35]}
{[%emt 00:01:16]} 13. Bg4 {[%clk 01:12:17]} {[%emt 00:06:20]} c6 {[%emt
00:06:38]} 14. Be3 {[%clk 00:52:11]} {[%emt 00:15:28]} Ne4 {[%clk 01:05:15]}
{[%emt 00:18:50]} 15. f3 {[%clk 00:33:06]} {[%emt 00:19:35]} Ng3 {[%clk
01:02:03]} 16. Bf2 {[%clk 00:28:47]} {[%emt 00:08:31]} Nh5 {[%clk 00:58:22]}
{[%emt 00:04:10]} 17. g3 {[%clk 00:26:54]} Bc5 {[%clk 00:44:36]} {[%emt
00:16:40]} 18. f4 {[%clk 00:22:39]} Bxd4 {[%clk 00:44:40]} {[%emt 00:05:12]} 19.
Qxd4 {[%clk 00:21:45]} f5 {[%clk 00:43:17]} {[%emt 00:03:16]} 20. Bf3 {[%clk
00:16:26]} Be8 {[%clk 00:42:46]} {[%emt 00:06:50]} 21. Qd1 {[%clk 00:04:55]} g6
{[%clk 00:43:02]} {[%emt 00:12:16]} 22. Bc5 {[%clk 00:03:41]} Rf7 {[%clk
00:40:24]} {[%emt 00:04:51]} 23. Kh2 {[%clk 00:02:49]} Ng7 {[%clk 00:36:49]}
{[%emt 00:05:28]} 24. e6 {[%clk 00:02:07]} Rf6 {[%clk 00:37:09]} {[%emt
00:01:22]} 25. e7 {[%clk 00:02:06]} Qd7 {[%clk 00:37:12]} {[%emt 00:00:58]} 26.
c4 {[%clk 00:01:11]} Ne6 {[%clk 00:31:35]} {[%emt 00:07:31]} 27. cxd5 {[%clk
00:00:55]} Nxc5 {[%clk 00:24:00]} {[%emt 00:08:51]} 28. dxc6 {[%clk 00:01:23]}
bxc6 {[%clk 00:20:58]} {[%emt 00:03:34]} 29. Rc1 {[%clk 00:01:15]} Qxd1 {[%clk
00:19:24]} {[%emt 00:02:42]} 30. Rexd1 {[%clk 00:01:33]} Nb7 {[%clk 00:13:32]}
{[%emt 00:06:34]} 31. Re1 {[%clk 00:00:41]} Rd6 {[%clk 00:11:26]} {[%emt
00:03:58]} 32. Bd1 {[%clk 00:00:57]} Kf7 {[%clk 00:06:58]} {[%emt 00:05:13]} 33.
Bb3+ {[%clk 00:00:58]} Kf6 {[%clk 00:07:22]} {[%emt 00:00:34]} 34. g4 {[%clk
00:01:06]} {[%emt 00:00:23]} Bd7 {[%clk 00:05:59]} {[%emt 00:01:52]} 35. Re5
{[%clk 00:00:51]} {[%emt 00:00:45]} Re8 {[%clk 00:05:08]} {[%emt 00:01:21]} 36.
g5+ {[%clk 00:00:56]} {[%emt 00:00:26]} Kg7 {[%clk 00:05:28]} {[%emt 00:00:09]}
37. Rce1 {[%clk 00:01:14]} {[%emt 00:00:12]} Rd2+ {[%clk 00:02:24]} {[%emt
00:03:35]} 38. Kg1 {[%clk 00:01:32]} {[%emt 00:00:11]} Nd6 {[%clk 00:01:52]}
{[%emt 00:01:02]} 39. Ra5 {[%clk 00:01:37]} {[%emt 00:00:26]} Ne4 {[%clk
00:01:59]} {[%emt 00:00:22]} 40. Re5 {[%clk 00:01:19]} {[%emt 00:00:49]} Rxb2
{[%clk 00:01:22]} {[%emt 00:01:06]} 41. Rd1 {[%clk 00:01:09]} {[%emt 00:00:40]}
Rd2 {[%clk 00:01:23]} {[%emt 00:00:29]} 42. Rc1 {[%clk 00:01:07]} {[%emt
00:00:32]} Rd6 {[%clk 00:29:22]} {[%emt 00:02:30]} 43. Rc4 {[%clk 00:31:22]}
{[%emt 00:00:16]} 0-1

[Event "Amateur Tournament (ATO)"]
[Site "Biel, Switzerland"]
[Date "2026.07.22"]
[Round "8.4"]
[White "Novalic, Miralem"]
[Black "Materia, Matteo"]
[Result "1-0"]
[TimeControl "90+30+30sec/move"]
[WhiteTitle "-"]
[BlackTitle "-"]
[WhiteFideId "1317539"]
[BlackFideId "45150575"]
[WhiteElo "1966"]
[BlackElo "1825"]

1. d4 {[%emt 00:00:10]} d5 {[%clk 01:30:38]} {[%emt 00:00:18]} 2. Nf3 {[%clk
01:30:11]} {[%emt 00:01:11]} Nf6 {[%clk 01:31:03]} {[%emt 00:00:06]} 3. c4
{[%clk 01:30:11]} {[%emt 00:00:31]} c6 {[%clk 01:31:21]} {[%emt 00:00:10]} 4.
Qc2 {[%clk 01:26:40]} {[%emt 00:04:01]} g6 {[%clk 01:30:54]} {[%emt 00:00:56]}
5. e3 {[%clk 01:26:24]} {[%emt 00:00:45]} Bf5 {[%clk 01:29:04]} {[%emt
00:02:20]} 6. Qb3 {[%clk 01:25:13]} {[%emt 00:01:42]} Qb6 {[%clk 01:14:18]}
{[%emt 00:15:16]} 7. Qa4 {[%clk 01:17:42]} {[%emt 00:08:00]} Qa6 {[%clk
01:02:33]} {[%emt 00:12:16]} 8. Qxa6 {[%clk 01:15:25]} {[%emt 00:02:47]} Nxa6
{[%clk 01:02:57]} {[%emt 00:00:06]} 9. a3 {[%clk 01:15:43]} {[%emt 00:00:12]}
Rc8 {[%clk 00:55:07]} {[%emt 00:08:20]} 10. Nc3 {[%clk 01:13:54]} {[%emt
00:02:18]} Nb8 {[%clk 00:51:56]} {[%emt 00:03:42]} 11. Nh4 {[%clk 01:04:20]}
{[%emt 00:10:04]} Bc2 {[%clk 00:43:44]} {[%emt 00:08:41]} 12. b4 {[%clk
00:57:58]} {[%emt 00:06:52]} Bg7 {[%clk 00:29:35]} {[%emt 00:14:40]} 13. Kd2
{[%clk 00:47:32]} {[%emt 00:10:56]} Bb3 {[%clk 00:28:25]} {[%emt 00:01:40]} 14.
c5 {[%clk 00:47:29]} {[%emt 00:00:32]} Ne4+ {[%clk 00:27:42]} {[%emt 00:01:12]}
15. Nxe4 {[%clk 00:46:46]} {[%emt 00:01:14]} dxe4 {[%clk 00:28:06]} {[%emt
00:00:05]} 16. Rb1 {[%clk 00:42:33]} {[%emt 00:04:44]} Ba2 {[%clk 00:27:15]}
{[%emt 00:01:21]} 17. Ra1 {[%clk 00:40:38]} {[%emt 00:02:26]} Be6 {[%clk
00:26:18]} {[%emt 00:01:26]} 18. g3 {[%clk 00:39:13]} {[%emt 00:01:56]} g5
{[%clk 00:26:30]} {[%emt 00:00:17]} 19. Ng2 {[%clk 00:39:28]} {[%emt 00:00:16]}
Rd8 {[%clk 00:25:17]} {[%emt 00:01:43]} 20. Kc2 {[%clk 00:38:24]} {[%emt
00:01:33]} Bf5 {[%clk 00:22:47]} {[%emt 00:03:01]} 21. Bb2 {[%clk 00:37:36]}
{[%emt 00:01:18]} Be6 {[%clk 00:18:53]} {[%emt 00:04:23]} 22. h4 {[%clk
00:37:16]} {[%emt 00:00:50]} h6 {[%clk 00:19:15]} {[%emt 00:00:09]} 23. Be2
{[%clk 00:37:18]} {[%emt 00:00:27]} O-O {[%clk 00:14:46]} {[%emt 00:04:59]} 24.
hxg5 {[%clk 00:36:29]} {[%emt 00:01:20]} hxg5 {[%clk 00:15:11]} {[%emt
00:00:05]} 25. Rh5 {[%clk 00:36:06]} {[%emt 00:00:52]} f6 {[%clk 00:13:13]}
{[%emt 00:02:29]} 26. Rd1 {[%clk 00:33:29]} {[%emt 00:03:06]} Kf7 {[%clk
00:11:33]} {[%emt 00:02:10]} 27. f4 {[%clk 00:31:03]} {[%emt 00:02:56]} exf3
{[%clk 00:09:11]} {[%emt 00:02:53]} 28. Bxf3 {[%clk 00:31:25]} {[%emt
00:00:08]} Rh8 {[%clk 00:08:42]} {[%emt 00:00:59]} 29. Rdh1 {[%clk 00:30:24]}
{[%emt 00:01:29]} Rxh5 {[%clk 00:04:20]} {[%emt 00:04:53]} 30. Bxh5+ {[%clk
00:24:35]} {[%emt 00:06:19]} Kf8 {[%clk 00:04:48]} {[%emt 00:00:03]} 31. Bg6
{[%clk 00:24:29]} {[%emt 00:00:34]} Na6 {[%clk 00:03:13]} {[%emt 00:02:08]} 32.
e4 {[%clk 00:23:33]} {[%emt 00:01:25]} Bf7 {[%clk 00:02:13]} {[%emt 00:01:31]}
33. Bh7 {[%clk 00:21:25]} {[%emt 00:02:36]} e6 {[%clk 00:01:21]} {[%emt
00:01:23]} 34. e5 {[%clk 00:13:56]} {[%emt 00:07:57]} fxe5 {[%clk 00:00:51]}
{[%emt 00:01:01]} 35. dxe5 {[%clk 00:14:02]} {[%emt 00:00:24]} Nc7 {[%clk
00:00:53]} {[%emt 00:00:28]} 36. Ne3 {[%clk 00:13:14]} {[%emt 00:01:18]} Nd5
{[%clk 00:01:00]} {[%emt 00:00:23]} 37. Nc4 {[%clk 00:13:25]} {[%emt 00:00:19]}
Bg8 {[%clk 00:00:53]} {[%emt 00:00:37]} 38. Bg6 {[%clk 00:11:17]} {[%emt
00:02:38]} b6 {[%clk 00:00:56]} {[%emt 00:00:27]} 39. Rf1+ {[%clk 00:04:21]}
{[%emt 00:07:25]} Ke7 {[%clk 00:01:15]} {[%emt 00:00:11]} 40. Bc1 {[%clk
00:04:39]} {[%emt 00:00:13]} Kd7 {[%clk 00:00:50]} {[%emt 00:00:56]} 41. Bxg5
{[%clk 00:04:14]} {[%emt 00:00:54]} Rf8 {[%clk 00:30:31]} {[%emt 00:01:19]} 42.
Rxf8 {[%clk 00:34:22]} {[%emt 00:01:23]} Bxf8 {[%clk 00:30:56]} {[%emt
00:00:05]} 43. cxb6 {[%clk 00:33:50]} {[%emt 00:01:02]} axb6 {[%clk 00:31:09]}
{[%emt 00:00:17]} 44. Kd3 {[%clk 00:33:32]} {[%emt 00:00:46]} b5 {[%clk
00:28:35]} {[%emt 00:03:04]} 45. Ne3 {[%clk 00:33:03]} {[%emt 00:01:00]} c5
{[%clk 00:24:35]} {[%emt 00:04:30]} 46. bxc5 {[%clk 00:30:44]} {[%emt
00:02:49]} Bxc5 {[%clk 00:25:00]} {[%emt 00:00:06]} 47. Ng4 {[%clk 00:28:21]}
{[%emt 00:02:52]} Bxa3 {[%clk 00:21:27]} {[%emt 00:04:03]} 48. Nf6+ {[%clk
00:26:30]} {[%emt 00:02:20]} Nxf6 {[%clk 00:21:05]} {[%emt 00:00:53]} 49. exf6
{[%clk 00:26:54]} {[%emt 00:00:06]} Bd6 {[%clk 00:20:12]} {[%emt 00:01:23]} 50.
g4 {[%clk 00:26:51]} {[%emt 00:00:33]} Kc6 {[%clk 00:19:43]} {[%emt 00:01:00]}
51. f7 {[%clk 00:27:10]} {[%emt 00:00:10]} Bxf7 {[%clk 00:20:09]} {[%emt
00:00:05]} 52. Bxf7 {[%clk 00:27:33]} {[%emt 00:00:06]} Kd5 {[%clk 00:20:23]}
{[%emt 00:00:17]} 53. Bf6 {[%clk 00:27:33]} {[%emt 00:00:29]} Be5 {[%clk
00:18:00]} {[%emt 00:02:54]} 54. Be7 {[%clk 00:26:55]} {[%emt 00:01:07]} Bg7
{[%clk 00:17:40]} {[%emt 00:00:50]} 55. Ke3 {[%clk 00:26:47]} {[%emt 00:00:38]}
Ke5 {[%clk 00:14:30]} {[%emt 00:03:40]} 56. Be8 {[%clk 00:26:43]} {[%emt
00:00:34]} b4 {[%clk 00:14:41]} {[%emt 00:00:19]} 57. Bxb4 {[%clk 00:26:55]}
{[%emt 00:00:18]} Bh6+ {[%clk 00:15:06]} {[%emt 00:00:04]} 58. Kf3 {[%clk
00:27:17]} {[%emt 00:00:08]} Kf6 {[%clk 00:15:24]} {[%emt 00:00:14]} 59. Bc3+
{[%clk 00:27:23]} {[%emt 00:00:23]} e5 {[%clk 00:15:47]} {[%emt 00:00:07]} 60.
Bd7 {[%clk 00:27:17]} {[%emt 00:00:35]} Bf4 {[%clk 00:16:11]} {[%emt 00:00:07]}
61. Ba5 {[%clk 00:27:17]} {[%emt 00:00:30]} Kg5 {[%clk 00:16:30]} {[%emt
00:00:11]} 62. Bd8+ {[%clk 00:27:23]} {[%emt 00:00:24]} Kh6 {[%clk 00:16:55]}
{[%emt 00:00:05]} 63. Ke4 {[%clk 00:27:33]} {[%emt 00:00:20]} Bg3 {[%clk
00:16:58]} {[%emt 00:00:26]} 64. Kf5 {[%clk 00:27:37]} {[%emt 00:00:27]} Bh2
{[%clk 00:17:17]} {[%emt 00:00:10]} 65. Bg5+ {[%clk 00:27:40]} {[%emt
00:00:27]} Kg7 {[%clk 00:17:41]} {[%emt 00:00:07]} 66. Bf6+ {[%clk 00:28:02]}
{[%emt 00:00:08]} 1-0

[Event "Amateur Tournament (ATO)"]
[Site "Biel, Switzerland"]
[Date "2026.07.22"]
[Round "8.5"]
[White "Aegerter, Fabrice"]
[Black "Pinelli, Gian"]
[Result "1/2-1/2"]
[TimeControl "90+30+30sec/move"]
[WhiteTitle "-"]
[BlackTitle "-"]
[WhiteFideId "1344854"]
[BlackFideId "1348710"]
[WhiteElo "1915"]
[BlackElo "1824"]

1. d4 {[%clk 01:30:50]} {[%emt 00:00:09]} Nf6 {[%clk 01:30:52]} {[%emt
00:00:08]} 2. Nf3 {[%clk 01:30:35]} {[%emt 00:00:46]} d5 {[%clk 01:31:16]}
{[%emt 00:00:06]} 3. c4 {[%clk 01:30:59]} {[%emt 00:00:06]} e6 {[%clk
01:31:39]} {[%emt 00:00:08]} 4. g3 {[%clk 01:31:21]} {[%emt 00:00:07]} Be7
{[%clk 01:31:35]} {[%emt 00:00:33]} 5. Bg2 {[%clk 01:31:44]} {[%emt 00:00:08]}
O-O {[%clk 01:31:39]} {[%emt 00:00:26]} 6. O-O {[%clk 01:32:04]} {[%emt
00:00:10]} b6 {[%clk 01:29:56]} {[%emt 00:02:14]} 7. Nc3 {[%clk 01:30:56]}
{[%emt 00:01:37]} Bb7 {[%clk 01:29:30]} {[%emt 00:00:56]} 8. Ne5 {[%clk
01:21:43]} {[%emt 00:09:43]} Nbd7 {[%clk 01:21:51]} {[%emt 00:08:09]} 9. Bf4
{[%clk 01:20:08]} {[%emt 00:02:05]} c6 {[%clk 01:13:18]} {[%emt 00:09:04]} 10.
e4 {[%clk 01:16:44]} {[%emt 00:03:53]} Nxe5 {[%clk 01:09:08]} {[%emt 00:04:40]}
11. dxe5 {[%clk 00:49:38]} {[%emt 00:27:35]} Nxe4 {[%clk 01:06:50]} {[%emt
00:02:49]} 12. Nxe4 {[%clk 00:45:52]} {[%emt 00:04:16]} dxe4 {[%clk 01:07:08]}
{[%emt 00:00:12]} 13. Bxe4 {[%clk 00:46:08]} {[%emt 00:00:13]} Qxd1 {[%clk
01:07:34]} {[%emt 00:00:05]} 14. Rfxd1 {[%clk 00:45:00]} {[%emt 00:01:38]} Rfd8
{[%clk 01:07:51]} {[%emt 00:00:12]} 15. a3 {[%clk 00:44:43]} {[%emt 00:00:49]}
Rac8 {[%clk 01:03:02]} {[%emt 00:05:18]} 16. Be3 {[%clk 00:34:39]} {[%emt
00:10:33]} 1/2-1/2